[Event "Polofinale MCR junioru 2023"]
[Site "Czech Republic"]
[Date "2023.11.17"]
[Round "8.30"]
[White "Siles, Jan"]
[Black "Svadlenka, Dominik"]
[Result "1/2-1/2"]
[TimeControl "90 min per 40 moves + 15 min + 30 sec / move from move 1"]
[WhiteFideId "23715405"]
[BlackFideId "23716258"]
[WhiteElo "1829"]
[BlackElo "1725"]

1. e4 {[%clk 01:29:13]} {[%emt 00:01:47]} c6 {[%clk 01:30:55]} {[%emt
00:00:05]} 2. d4 {[%clk 01:29:37]} {[%emt 00:00:06]} d5 {[%clk 01:31:22]}
{[%emt 00:00:03]} 3. f3 {[%clk 01:29:58]} {[%emt 00:00:09]} e6 {[%clk
01:31:48]} {[%emt 00:00:04]} 4. Nc3 {[%clk 01:29:39]} {[%emt 00:00:47]} Bb4
{[%clk 01:32:12]} {[%emt 00:00:07]} 5. Qd3 {[%clk 01:29:34]} {[%emt 00:00:36]}
Ne7 {[%clk 01:31:57]} {[%emt 00:00:45]} 6. Nge2 {[%clk 01:28:34]} {[%emt
00:01:29]} O-O {[%clk 01:31:22]} {[%emt 00:01:06]} 7. Be3 {[%clk 01:17:26]}
{[%emt 00:11:38]} Nd7 {[%clk 01:26:58]} {[%emt 00:04:54]} 8. a3 {[%clk
01:16:35]} {[%emt 00:01:21]} Ba5 {[%clk 01:25:18]} {[%emt 00:02:09]} 9. exd5
{[%clk 00:59:57]} {[%emt 00:17:08]} Nxd5 {[%clk 01:19:48]} {[%emt 00:06:00]} 10.
Bd2 {[%clk 00:53:34]} {[%emt 00:06:53]} Bc7 {[%clk 01:08:29]} {[%emt 00:11:50]}
11. O-O-O {[%clk 00:41:16]} {[%emt 00:12:47]} a5 {[%clk 00:45:37]} {[%emt
00:23:22]} 12. Nxd5 {[%clk 00:33:56]} {[%emt 00:07:51]} exd5 {[%clk 00:45:09]}
{[%emt 00:00:57]} 13. Qe3 {[%clk 00:32:46]} {[%emt 00:01:39]} Re8 {[%clk
00:42:55]} {[%emt 00:02:46]} 14. Qg5 {[%clk 00:31:23]} {[%emt 00:01:53]} Qxg5
{[%clk 00:39:36]} {[%emt 00:03:49]} 15. Bxg5 {[%clk 00:31:45]} {[%emt
00:00:08]} Nf8 {[%clk 00:38:56]} {[%emt 00:01:09]} 16. Bf4 {[%clk 00:30:05]}
{[%emt 00:02:10]} Bxf4+ {[%clk 00:34:54]} {[%emt 00:04:33]} 17. Nxf4 {[%clk
00:30:27]} {[%emt 00:00:08]} Ng6 {[%clk 00:28:59]} {[%emt 00:06:24]} 18. Nxg6
{[%clk 00:26:34]} {[%emt 00:04:23]} hxg6 {[%clk 00:29:21]} {[%emt 00:00:09]} 19.
Bd3 {[%clk 00:25:35]} {[%emt 00:01:29]} Bf5 {[%clk 00:29:00]} {[%emt 00:00:51]}
20. Bxf5 {[%clk 00:20:57]} {[%emt 00:05:08]} gxf5 {[%clk 00:29:24]} {[%emt
00:00:07]} 21. Rhe1 {[%clk 00:21:18]} {[%emt 00:00:09]} f6 {[%clk 00:29:09]}
{[%emt 00:00:44]} 22. Rxe8+ {[%clk 00:13:42]} {[%emt 00:08:06]} Rxe8 {[%clk
00:29:30]} {[%emt 00:00:09]} 23. Kd2 {[%clk 00:14:03]} {[%emt 00:00:08]} Kf7
{[%clk 00:29:17]} {[%emt 00:00:43]} 24. Rb1 {[%clk 00:12:36]} {[%emt 00:01:57]}
Ra8 {[%clk 00:16:40]} {[%emt 00:13:07]} 25. Re1 {[%clk 00:04:22]} {[%emt
00:08:44]} Rh8 {[%clk 00:16:52]} {[%emt 00:00:18]} 26. h3 {[%clk 00:04:25]}
{[%emt 00:00:26]} f4 {[%clk 00:16:02]} {[%emt 00:01:20]} 27. Kc3 {[%clk
00:02:14]} {[%emt 00:02:41]} b5 {[%clk 00:01:48]} {[%emt 00:14:44]} 28. b4
{[%clk 00:02:02]} {[%emt 00:00:42]} a4 {[%clk 00:02:10]} {[%emt 00:00:08]} 29.
Kd2 {[%clk 00:01:37]} {[%emt 00:00:55]} Rd8 {[%clk 00:02:34]} {[%emt 00:00:06]}
30. Re2 {[%clk 00:00:42]} {[%emt 00:01:25]} Rd6 {[%clk 00:02:59]} {[%emt
00:00:05]} 31. Ke1 {[%clk 00:00:39]} {[%emt 00:00:32]} Re6 {[%clk 00:01:17]}
{[%emt 00:02:12]} 32. Rxe6 {[%clk 00:01:00]} {[%emt 00:00:09]} Kxe6 {[%clk
00:01:44]} {[%emt 00:00:04]} 33. Kf2 {[%clk 00:00:49]} {[%emt 00:00:41]} Kf5
{[%clk 00:02:08]} {[%emt 00:00:05]} 34. Kg1 {[%clk 00:00:49]} {[%emt 00:00:29]}
Kg5 {[%clk 00:02:31]} {[%emt 00:00:08]} 35. Kf1 {[%clk 00:00:57]} {[%emt
00:00:22]} Kh4 {[%clk 00:02:56]} {[%emt 00:00:05]} 36. Kf2 {[%clk 00:01:23]}
{[%emt 00:00:04]} g6 {[%clk 00:02:54]} {[%emt 00:00:32]} 37. Kg1 {[%clk
00:01:18]} {[%emt 00:00:36]} Kg3 {[%clk 00:03:06]} {[%emt 00:00:18]} 38. Kf1
{[%clk 00:01:39]} {[%emt 00:00:09]} g5 {[%clk 00:02:43]} {[%emt 00:00:53]} 39.
Kg1 {[%clk 00:01:32]} {[%emt 00:00:37]} f5 {[%clk 00:03:02]} {[%emt 00:00:11]}
40. Kf1 {[%clk 00:01:07]} {[%emt 00:00:54]} g4 {[%clk 00:02:40]} {[%emt
00:00:52]} 41. hxg4 {[%clk 00:14:48]} {[%emt 00:02:19]} fxg4 {[%clk 00:18:35]}
{[%emt 00:00:06]} 42. fxg4 {[%clk 00:14:55]} {[%emt 00:00:21]} Kxg4 {[%clk
00:19:01]} {[%emt 00:00:06]} 43. Kf2 {[%clk 00:14:55]} {[%emt 00:00:30]} Kg5
{[%clk 00:18:55]} {[%emt 00:00:36]} 44. Kf3 {[%clk 00:14:35]} {[%emt 00:00:51]}
Kf5 {[%clk 00:19:19]} {[%emt 00:00:06]} 45. c3 {[%clk 00:14:41]} {[%emt
00:00:24]} Kg5 {[%clk 00:19:30]} {[%emt 00:00:18]} 46. g4 {[%clk 00:14:24]}
{[%emt 00:00:47]} fxg3 {[%clk 00:19:48]} {[%emt 00:00:12]} 1/2-1/2

[Event "Polofinale MCR junioru 2023"]
[Site "Czech Republic"]
[Date "2023.11.17"]
[Round "8.31"]
[White "Jurok, Vojtech"]
[Black "Slaby, Matej"]
[Result "1/2-1/2"]
[TimeControl "90 min per 40 moves + 15 min + 30 sec / move from move 1"]
[WhiteFideId "23741023"]
[BlackFideId "23734876"]
[WhiteElo "1801"]
[BlackElo "1940"]

1. e4 {[%clk 01:30:54]} {[%emt 00:00:05]} c6 {[%clk 01:30:55]} {[%emt
00:00:05]} 2. d4 {[%clk 01:31:06]} {[%emt 00:00:18]} d5 {[%clk 01:31:19]}
{[%emt 00:00:06]} 3. e5 {[%clk 01:31:12]} {[%emt 00:00:25]} Bf5 {[%clk
01:31:42]} {[%emt 00:00:07]} 4. h4 {[%clk 01:31:21]} {[%emt 00:00:21]} h5
{[%clk 01:31:08]} {[%emt 00:01:04]} 5. Bg5 {[%clk 01:31:23]} {[%emt 00:00:27]}
Qb6 {[%clk 01:30:30]} {[%emt 00:01:08]} 6. Bd3 {[%clk 01:31:28]} {[%emt
00:00:27]} Bxd3 {[%clk 01:25:54]} {[%emt 00:05:06]} 7. Qxd3 {[%clk 01:31:51]}
{[%emt 00:00:07]} e6 {[%clk 01:24:29]} {[%emt 00:01:55]} 8. Nd2 {[%clk
01:31:51]} {[%emt 00:00:30]} Ne7 {[%clk 01:20:57]} {[%emt 00:04:02]} 9. Ngf3
{[%clk 01:28:23]} {[%emt 00:03:58]} Nd7 {[%clk 01:19:55]} {[%emt 00:01:32]} 10.
O-O {[%clk 01:25:08]} {[%emt 00:03:44]} Qc7 {[%clk 01:12:22]} {[%emt 00:08:05]}
11. Rac1 {[%clk 01:15:12]} {[%emt 00:10:26]} b5 {[%clk 01:11:08]} {[%emt
00:01:44]} 12. a4 {[%clk 01:03:33]} {[%emt 00:12:09]} bxa4 {[%clk 00:56:02]}
{[%emt 00:15:37]} 13. Bxe7 {[%clk 00:55:18]} {[%emt 00:08:44]} Bxe7 {[%clk
00:56:19]} {[%emt 00:00:12]} 14. c4 {[%clk 00:55:14]} {[%emt 00:00:35]} dxc4
{[%clk 00:49:21]} {[%emt 00:07:28]} 15. Nxc4 {[%clk 00:54:55]} {[%emt
00:00:49]} Rb8 {[%clk 00:46:59]} {[%emt 00:02:53]} 16. Qc2 {[%clk 00:44:11]}
{[%emt 00:11:14]} Rb4 {[%clk 00:45:32]} {[%emt 00:01:57]} 17. Ra1 {[%clk
00:35:33]} {[%emt 00:09:10]} Nb6 {[%clk 00:44:57]} {[%emt 00:01:05]} 18. Nxb6
{[%clk 00:29:33]} {[%emt 00:07:00]} Qxb6 {[%clk 00:45:13]} {[%emt 00:00:44]} 19.
Rfc1 {[%clk 00:26:38]} {[%emt 00:03:24]} Kd7 {[%clk 00:36:12]} {[%emt
00:09:31]} 20. Rxa4 {[%clk 00:24:48]} {[%emt 00:02:21]} Rxa4 {[%clk 00:36:33]}
{[%emt 00:00:09]} 21. Qxa4 {[%clk 00:25:16]} {[%emt 00:00:02]} Rc8 {[%clk
00:36:37]} {[%emt 00:00:26]} 22. Rc2 {[%clk 00:22:01]} {[%emt 00:03:45]} Rc7
{[%clk 00:36:32]} {[%emt 00:00:34]} 23. g3 {[%clk 00:20:36]} {[%emt 00:01:55]}
Qb5 {[%clk 00:36:20]} {[%emt 00:00:41]} 24. Qa2 {[%emt 00:09:06]} Qd5 {[%clk
00:32:30]} {[%emt 00:01:41]} 25. Qxd5+ {[%clk 00:15:06]} {[%emt 00:00:05]} cxd5
{[%clk 00:32:51]} {[%emt 00:00:09]} 26. Rxc7+ {[%clk 00:14:43]} {[%emt
00:00:53]} Kxc7 {[%clk 00:33:20]} {[%emt 00:00:02]} 27. Kf1 {[%clk 00:14:20]}
{[%emt 00:00:52]} Kb6 {[%clk 00:33:37]} {[%emt 00:00:13]} 28. Ke2 {[%clk
00:13:56]} {[%emt 00:00:54]} Kb5 {[%clk 00:33:58]} {[%emt 00:00:08]} 29. Kd3
{[%clk 00:13:57]} {[%emt 00:00:29]} a5 {[%clk 00:31:27]} {[%emt 00:03:01]}
1/2-1/2

[Event "Polofinale MCR junioru 2023"]
[Site "Czech Republic"]
[Date "2023.11.17"]
[Round "8.32"]
[White "Gregor, Alexandr"]
[Black "Hrbek, Jachym"]
[Result "1/2-1/2"]
[TimeControl "90 min per 40 moves + 15 min + 30 sec / move from move 1"]
[WhiteFideId "23735813"]
[BlackFideId "23709138"]
[WhiteElo "1601"]
[BlackElo "1913"]

1. e4 {[%clk 01:30:56]} {[%emt 00:00:03]} c6 {[%emt 00:00:48]} 2. d4 {[%clk
01:31:14]} {[%emt 00:00:02]} d5 {[%clk 01:30:27]} {[%emt 00:00:25]} 3. e5
{[%clk 01:31:23]} {[%emt 00:00:22]} Bf5 {[%clk 01:30:15]} {[%emt 00:00:41]} 4.
h4 {[%clk 01:31:35]} {[%emt 00:00:18]} h5 {[%clk 01:30:36]} {[%emt 00:00:09]} 5.
Ne2 {[%clk 01:30:15]} {[%emt 00:01:51]} e6 {[%clk 01:20:00]} {[%emt 00:11:05]}
6. Ng3 {[%clk 01:30:30]} {[%emt 00:00:16]} Bg6 {[%clk 01:20:20]} {[%emt
00:00:10]} 7. Nd2 {[%clk 01:28:09]} {[%emt 00:02:52]} Be7 {[%clk 01:17:41]}
{[%emt 00:03:09]} 8. Nf3 {[%clk 01:28:19]} {[%emt 00:00:20]} Nd7 {[%clk
01:13:17]} {[%emt 00:04:53]} 9. Bd3 {[%clk 01:28:28]} {[%emt 00:00:22]} Bxd3
{[%clk 01:13:40]} {[%emt 00:00:06]} 10. Qxd3 {[%clk 01:28:53]} {[%emt
00:00:06]} Qa5+ {[%clk 01:13:50]} {[%emt 00:00:20]} 11. c3 {[%clk 01:26:24]}
{[%emt 00:02:59]} Qa6 {[%clk 01:08:31]} {[%emt 00:05:48]} 12. Qxa6 {[%clk
01:26:21]} {[%emt 00:00:33]} bxa6 {[%clk 01:08:59]} {[%emt 00:00:02]} 13. b4
{[%clk 01:25:20]} {[%emt 00:01:32]} Nb6 {[%clk 01:07:53]} {[%emt 00:01:36]} 14.
Nd2 {[%clk 01:23:59]} {[%emt 00:01:51]} Kd7 {[%clk 01:07:13]} {[%emt 00:01:09]}
15. a4 {[%clk 01:23:53]} {[%emt 00:00:37]} Rb8 {[%clk 01:04:04]} {[%emt
00:03:38]} 16. a5 {[%clk 01:22:11]} {[%emt 00:02:12]} Na8 {[%clk 01:04:22]}
{[%emt 00:00:12]} 17. Nb3 {[%clk 01:20:59]} {[%emt 00:01:43]} Nc7 {[%clk
01:03:09]} {[%emt 00:01:43]} 18. Kd2 {[%clk 01:19:50]} {[%emt 00:01:40]} Nh6
{[%clk 00:59:53]} {[%emt 00:03:45]} 19. f3 {[%clk 01:17:03]} {[%emt 00:03:17]}
g6 {[%clk 00:58:53]} {[%emt 00:01:30]} 20. Kd3 {[%clk 01:17:14]} {[%emt
00:00:19]} Nf5 {[%clk 00:51:37]} {[%emt 00:07:45]} 21. Nxf5 {[%clk 01:17:31]}
{[%emt 00:00:13]} gxf5 {[%clk 00:47:26]} {[%emt 00:04:41]} 22. Bg5 {[%clk
01:17:15]} {[%emt 00:00:46]} Bxg5 {[%clk 00:34:08]} {[%emt 00:13:47]} 23. hxg5
{[%clk 01:17:34]} {[%emt 00:00:12]} f4 {[%clk 00:34:13]} {[%emt 00:00:26]} 24.
Rh4 {[%clk 01:17:46]} {[%emt 00:00:18]} Rbg8 {[%clk 00:34:30]} {[%emt
00:00:12]} 25. Rxf4 {[%clk 01:17:41]} {[%emt 00:00:36]} Ke7 {[%clk 00:34:39]}
{[%emt 00:00:19]} 26. Rh4 {[%clk 01:14:10]} {[%emt 00:04:03]} Rxg5 {[%clk
00:34:52]} {[%emt 00:00:17]} 27. g4 {[%clk 01:14:04]} {[%emt 00:00:36]} Rhg8
{[%clk 00:20:51]} {[%emt 00:14:32]} 28. gxh5 {[%clk 01:07:55]} {[%emt
00:06:39]} Rg3 {[%clk 00:18:33]} {[%emt 00:02:48]} 29. Rf1 {[%clk 01:07:22]}
{[%emt 00:01:03]} Ne8 {[%clk 00:18:10]} {[%emt 00:00:50]} 30. h6 {[%clk
01:06:19]} {[%emt 00:01:36]} Rh8 {[%clk 00:18:21]} {[%emt 00:00:17]} 31. Ke3
{[%clk 01:02:27]} {[%emt 00:04:24]} Ng7 {[%clk 00:17:21]} {[%emt 00:01:29]} 32.
Kf2 {[%clk 01:00:21]} {[%emt 00:02:36]} Nf5 {[%clk 00:17:07]} {[%emt 00:00:44]}
33. Rh5 {[%clk 01:00:20]} {[%emt 00:00:32]} Rg6 {[%clk 00:17:16]} {[%emt
00:00:21]} 34. Rfh1 {[%clk 00:59:17]} {[%emt 00:01:33]} Ng3 {[%clk 00:17:22]}
{[%emt 00:00:23]} 35. Nc5 {[%clk 00:58:04]} {[%emt 00:01:44]} Rgxh6 {[%clk
00:10:06]} {[%emt 00:07:45]} 36. Kxg3 {[%clk 00:56:22]} {[%emt 00:02:12]} Rxh5
{[%clk 00:10:30]} {[%emt 00:00:06]} 37. Rxh5 {[%clk 00:56:46]} {[%emt
00:00:07]} Rxh5 {[%clk 00:10:58]} {[%emt 00:00:02]} 38. Nxa6 {[%clk 00:57:03]}
{[%emt 00:00:13]} Rh8 {[%clk 00:01:32]} {[%emt 00:09:54]} 39. Kf4 {[%clk
00:57:19]} {[%emt 00:00:15]} f6 {[%clk 00:01:00]} {[%emt 00:01:00]} 40. exf6+
{[%clk 00:57:39]} {[%emt 00:00:11]} Kxf6 {[%clk 00:01:11]} {[%emt 00:00:20]} 41.
Nc5 {[%clk 00:57:19]} {[%emt 00:00:50]} Rh4+ {[%clk 00:09:05]} {[%emt
00:08:06]} 42. Ke3 {[%clk 01:13:41]} {[%emt 00:00:08]} Kf5 {[%clk 00:08:16]}
{[%emt 00:01:17]} 43. Nd7 {[%clk 01:13:04]} {[%emt 00:01:10]} Rh7 {[%clk
00:04:01]} {[%emt 00:04:43]} 44. Ne5 {[%clk 01:13:25]} {[%emt 00:00:11]} Rc7
{[%clk 00:04:03]} {[%emt 00:00:26]} 45. Kd3 {[%clk 01:07:24]} {[%emt 00:06:33]}
1/2-1/2

[Event "Polofinale MCR junioru 2023"]
[Site "Czech Republic"]
[Date "2023.11.17"]
[Round "8.33"]
[White "Rucabado, Stefan"]
[Black "Valdman, Jakub"]
[Result "0-1"]
[TimeControl "90 min per 40 moves + 15 min + 30 sec / move from move 1"]
[WhiteFideId "23730315"]
[BlackFideId "23718196"]
[WhiteElo "1873"]
[BlackElo "1594"]

1. e4 {[%clk 01:30:59]} {[%emt 00:00:20]} e5 {[%clk 01:30:52]} {[%emt
00:00:08]} 2. Nf3 {[%clk 01:31:18]} {[%emt 00:00:10]} Nc6 {[%clk 01:31:17]}
{[%emt 00:00:06]} 3. Bb5 {[%clk 01:31:07]} {[%emt 00:00:41]} a6 {[%clk
01:31:34]} {[%emt 00:00:13]} 4. Ba4 {[%clk 01:31:33]} {[%emt 00:00:04]} Nf6
{[%clk 01:31:53]} {[%emt 00:00:11]} 5. O-O {[%clk 01:31:56]} {[%emt 00:00:07]}
b5 {[%clk 01:31:54]} {[%emt 00:00:30]} 6. Bb3 {[%clk 01:32:21]} {[%emt
00:00:05]} Be7 {[%clk 01:31:58]} {[%emt 00:00:26]} 7. Re1 {[%clk 01:32:45]}
{[%emt 00:00:05]} O-O {[%clk 01:31:54]} {[%emt 00:00:35]} 8. h3 {[%clk
01:32:32]} {[%emt 00:00:43]} d6 {[%clk 01:31:31]} {[%emt 00:00:53]} 9. c3
{[%clk 01:32:54]} {[%emt 00:00:07]} Na5 {[%clk 01:28:57]} {[%emt 00:03:04]} 10.
Bc2 {[%clk 01:32:27]} {[%emt 00:00:57]} c5 {[%clk 01:27:19]} {[%emt 00:02:09]}
11. d4 {[%clk 01:32:32]} {[%emt 00:00:25]} Qc7 {[%clk 01:24:30]} {[%emt
00:03:19]} 12. Nbd2 {[%clk 01:32:32]} {[%emt 00:00:29]} cxd4 {[%clk 01:23:13]}
{[%emt 00:01:48]} 13. cxd4 {[%clk 01:32:55]} {[%emt 00:00:07]} Bb7 {[%clk
01:22:19]} {[%emt 00:01:24]} 14. Nf1 {[%clk 01:32:57]} {[%emt 00:00:28]} Nc6
{[%clk 01:11:25]} {[%emt 00:11:25]} 15. a3 {[%clk 01:18:17]} {[%emt 00:15:09]}
Nxd4 {[%clk 01:06:40]} {[%emt 00:05:15]} 16. Nxd4 {[%clk 01:18:39]} {[%emt
00:00:08]} exd4 {[%clk 01:07:07]} {[%emt 00:00:03]} 17. Bb1 {[%clk 01:16:46]}
{[%emt 00:02:23]} d5 {[%clk 00:52:18]} {[%emt 00:15:19]} 18. exd5 {[%clk
01:03:18]} {[%emt 00:13:57]} Bxd5 {[%clk 00:45:35]} {[%emt 00:07:13]} 19. Bg5
{[%clk 01:02:32]} {[%emt 00:01:16]} h6 {[%clk 00:29:17]} {[%emt 00:16:50]} 20.
Bh4 {[%clk 01:01:21]} {[%emt 00:01:41]} Rfe8 {[%clk 00:28:57]} {[%emt
00:00:50]} 21. Qd2 {[%clk 00:48:58]} {[%emt 00:12:47]} Qb7 {[%clk 00:19:56]}
{[%emt 00:09:36]} 22. Qxd4 {[%clk 00:15:46]} {[%emt 00:33:42]} Bxg2 {[%clk
00:14:41]} {[%emt 00:05:46]} 23. Ne3 {[%clk 00:12:54]} {[%emt 00:03:21]} Bxh3
{[%clk 00:11:14]} {[%emt 00:03:58]} 24. Bf5 {[%clk 00:05:32]} {[%emt 00:07:53]}
Bc5 {[%clk 00:05:54]} {[%emt 00:05:50]} 25. Qd1 {[%clk 00:05:33]} {[%emt
00:00:28]} Rxe3 {[%clk 00:06:08]} {[%emt 00:00:17]} 0-1

[Event "Polofinale MCR junioru 2023"]
[Site "Czech Republic"]
[Date "2023.11.17"]
[Round "8.34"]
[White "Vlcek, Vojtech"]
[Black "Hampl, David"]
[Result "1-0"]
[TimeControl "90 min per 40 moves + 15 min + 30 sec / move from move 1"]
[WhiteFideId "23728647"]
[BlackFideId "398802"]
[WhiteElo "1703"]
[BlackElo "1801"]

1. d4 {[%clk 01:30:39]} {[%emt 00:00:20]} Nf6 {[%clk 01:30:54]} {[%emt
00:00:07]} 2. c4 {[%clk 01:31:05]} {[%emt 00:00:04]} g6 {[%clk 01:31:14]}
{[%emt 00:00:10]} 3. Nc3 {[%clk 01:31:31]} {[%emt 00:00:04]} d5 {[%clk
01:31:40]} {[%emt 00:00:04]} 4. cxd5 {[%clk 01:31:34]} {[%emt 00:00:27]} Nxd5
{[%clk 01:32:05]} {[%emt 00:00:05]} 5. Bd2 {[%clk 01:31:45]} {[%emt 00:00:20]}
Bg7 {[%clk 01:31:26]} {[%emt 00:01:08]} 6. e4 {[%clk 01:29:03]} {[%emt
00:03:12]} Nb6 {[%clk 01:30:30]} {[%emt 00:01:26]} 7. Be3 {[%clk 01:27:08]}
{[%emt 00:02:25]} O-O {[%clk 01:29:37]} {[%emt 00:01:23]} 8. Nf3 {[%clk
01:27:02]} {[%emt 00:00:36]} Bg4 {[%clk 01:29:05]} {[%emt 00:01:02]} 9. Be2
{[%clk 01:27:16]} {[%emt 00:00:16]} Bxf3 {[%clk 01:24:21]} {[%emt 00:05:15]} 10.
Bxf3 {[%clk 01:27:02]} {[%emt 00:00:44]} Nc6 {[%clk 01:24:30]} {[%emt
00:00:21]} 11. e5 {[%clk 01:19:40]} {[%emt 00:07:53]} Nc4 {[%clk 01:20:36]}
{[%emt 00:04:24]} 12. O-O {[%clk 01:17:13]} {[%emt 00:02:57]} Nxe3 {[%clk
01:15:37]} {[%emt 00:05:29]} 13. fxe3 {[%clk 01:17:29]} {[%emt 00:00:14]} Na5
{[%clk 01:13:07]} {[%emt 00:02:59]} 14. Qa4 {[%clk 01:14:27]} {[%emt 00:03:32]}
c5 {[%clk 01:11:25]} {[%emt 00:02:12]} 15. Rfd1 {[%clk 01:14:13]} {[%emt
00:00:41]} Rc8 {[%clk 00:56:02]} {[%emt 00:15:56]} 16. dxc5 {[%clk 01:12:36]}
{[%emt 00:02:07]} Qc7 {[%clk 00:55:56]} {[%emt 00:00:36]} 17. Nd5 {[%clk
01:12:07]} {[%emt 00:00:29]} Qxc5 {[%clk 00:48:38]} {[%emt 00:07:48]} 18. b4
{[%clk 01:12:46]} {[%emt 00:00:21]} Qc2 {[%clk 00:42:48]} {[%emt 00:06:21]} 19.
Qxa5 {[%clk 01:07:05]} {[%emt 00:06:10]} Rfe8 {[%clk 00:40:25]} {[%emt
00:02:53]} 20. Rac1 {[%clk 01:03:46]} {[%emt 00:03:48]} Qxc1 {[%clk 00:39:46]}
{[%emt 00:01:09]} 21. Rxc1 {[%clk 01:04:13]} {[%emt 00:00:04]} Rxc1+ {[%clk
00:40:09]} {[%emt 00:00:07]} 22. Kf2 {[%clk 01:04:29]} {[%emt 00:00:13]} Rc2+
{[%clk 00:39:43]} {[%emt 00:00:56]} 23. Ke1 {[%clk 01:04:41]} {[%emt 00:00:19]}
Bxe5 {[%clk 00:37:33]} {[%emt 00:02:39]} 24. Qa4 {[%clk 01:04:27]} {[%emt
00:00:43]} Rc1+ {[%clk 00:36:32]} {[%emt 00:01:32]} 25. Kd2 {[%clk 01:04:48]}
{[%emt 00:00:08]} Rcc8 {[%clk 00:36:53]} {[%emt 00:00:11]} 26. Qb5 {[%clk
01:03:07]} {[%emt 00:02:09]} Bxh2 {[%clk 00:34:07]} {[%emt 00:03:17]} 27. Qxb7
{[%clk 01:00:43]} {[%emt 00:02:54]} Kf8 {[%clk 00:33:50]} {[%emt 00:00:47]} 28.
Bd1 {[%clk 00:54:53]} {[%emt 00:06:19]} Rb8 {[%clk 00:31:31]} {[%emt 00:02:51]}
29. Qxa7 {[%clk 00:55:12]} {[%emt 00:00:12]} Ra8 {[%clk 00:30:59]} {[%emt
00:01:01]} 30. Qd4 {[%clk 00:54:07]} {[%emt 00:01:31]} Kg8 {[%clk 00:28:02]}
{[%emt 00:03:30]} 31. Bb3 {[%clk 00:53:18]} {[%emt 00:01:19]} h5 {[%clk
00:24:10]} {[%emt 00:04:23]} 32. Ke2 {[%clk 00:53:23]} {[%emt 00:00:25]} Rad8
{[%clk 00:22:43]} {[%emt 00:01:56]} 33. Qe4 {[%clk 00:52:40]} {[%emt 00:01:13]}
Bd6 {[%clk 00:22:34]} {[%emt 00:00:39]} 34. Ba4 {[%clk 00:50:30]} {[%emt
00:02:40]} Rf8 {[%clk 00:19:22]} {[%emt 00:03:42]} 35. Nxe7+ {[%clk 00:50:33]}
{[%emt 00:00:27]} Bxe7 {[%clk 00:18:31]} {[%emt 00:01:21]} 36. Qxe7 {[%clk
00:50:41]} {[%emt 00:00:22]} Rb8 {[%clk 00:17:23]} {[%emt 00:01:38]} 37. Bb3
{[%clk 00:50:56]} {[%emt 00:00:16]} Ra8 {[%clk 00:17:37]} {[%emt 00:00:15]} 38.
a4 {[%clk 00:51:20]} {[%emt 00:00:07]} Rae8 {[%clk 00:17:50]} {[%emt 00:00:17]}
39. Bxf7+ {[%clk 00:51:28]} {[%emt 00:00:21]} 1-0